bitfinex-derivatives/quotes_BTCF0:USTF0_20250130
["timestamp","ask_amount","ask_price","bid_price","bid_amount"]
[1738234073575,0.1,105400.0,105390.0,0.78347628]
[1738234075584,0.102,105400.0,105390.0,0.78347628]
[1738234076478,0.102,105400.0,105390.0,0.75823628]
[1738234076672,0.102,105400.0,105390.0,0.78347628]
[1738234077872,0.102,105400.0,105390.0,0.81527628]
[1738234079988,0.102,105400.0,105390.0,0.84747628]
[1738234080684,0.102,105400.0,105390.0,0.8082159]
[1738234080987,0.102,105400.0,105390.0,0.81763672]
[1738234085889,0.102,105400.0,105390.0,0.74954827]
[1738234086486,0.102,105400.0,105390.0,0.81763672]
[1738234086683,0.102,105400.0,105390.0,0.72430827]
[1738234086886,0.102,105400.0,105390.0,0.74954827]
[1738234088386,0.102,105400.0,105390.0,0.71734827]
[1738234088691,0.102,105400.0,105390.0,0.75323672]
[1738234089483,0.102,105400.0,105390.0,0.72799672]
[1738234089679,0.102,105400.0,105390.0,0.65990827]
[1738234091187,0.291781,105400.0,105390.0,0.65990827]
[1738234094001,0.291781,105400.0,105390.0,0.62810827]
[1738234094692,0.291781,105400.0,105390.0,0.26730827]
[1738234097098,0.102,105400.0,105390.0,0.26730827]
[1738234097497,0.102,105400.0,105390.0,0.29960827]
[1738234097797,0.102,105400.0,105390.0,0.66040827]
[1738234098497,0.291781,105400.0,105390.0,0.66040827]
[1738234098698,0.102,105400.0,105390.0,0.66040827]
[1738234099898,0.291781,105400.0,105390.0,0.66040827]
[1738234100099,0.291781,105400.0,105390.0,0.29960827]
[1738234103600,0.291781,105400.0,105390.0,0.66040827]
[1738234104001,0.102,105400.0,105390.0,0.66040827]
[1738234104800,0.102,105400.0,105390.0,0.72849672]
[1738234105004,0.102,105400.0,105390.0,0.75909672]
[1738234105205,0.102,105400.0,105390.0,0.78433672]
[1738234105393,0.102,105400.0,105390.0,0.81523672]
[1738234109299,0.06210352,105400.0,105390.0,0.81523672]
[1738234109506,0.0001426,105410.0,105400.0,0.189781]
[1738234109705,0.0001426,105410.0,105400.0,0.6867579]
[1738234110605,0.0061426,105410.0,105400.0,0.6877579]
[1738234112309,0.0061426,105410.0,105400.0,0.75584635]
[1738234114917,0.0061426,105410.0,105400.0,0.6877579]
[1738234116008,0.0061426,105410.0,105400.0,0.7129979]
[1738234127834,0.0061426,105410.0,105400.0,0.6877579]
[1738234128144,0.0061426,105410.0,105400.0,0.61966945]
[1738234128328,0.0666426,105410.0,105400.0,0.61966945]
[1738234128834,0.0666426,105410.0,105400.0,0.6877579]
[1738234133833,0.2564056,105410.0,105400.0,0.61966945]
[1738234134544,0.2564056,105410.0,105400.0,0.25886945]
[1738234135144,0.2564056,105410.0,105400.0,0.61966945]
[1738234135343,0.2564056,105410.0,105400.0,0.6877579]
[1738234136746,0.2564056,105410.0,105400.0,0.61966945]
[1738234137131,0.2564056,105410.0,105400.0,0.6877579]
[1738234137741,0.2564056,105410.0,105400.0,0.61966945]
[1738234139848,0.2564056,105410.0,105400.0,0.6877579]
[1738234140345,0.2564056,105410.0,105400.0,0.61966945]
[1738234144251,0.2564056,105410.0,105400.0,0.190781]
[1738234144447,0.68529405,105410.0,105400.0,0.001]
[1738234144646,0.189781,105400.0,105390.0,0.19920782]
[1738234144848,0.29006945,105400.0,105390.0,0.19920782]
[1738234145344,0.221981,105400.0,105390.0,0.26729627]
[1738234145645,0.29006945,105400.0,105390.0,0.19920782]
[1738234146849,0.29206945,105400.0,105390.0,0.19920782]
[1738234150245,0.7209579,105400.0,105390.0,0.00942082]
[1738234150447,0.5311769,105400.0,105380.0,0.1899506]
[1738234150642,0.254599,105390.0,105380.0,0.25803905]
[1738234152250,0.254599,105390.0,105380.0,0.6869275]
[1738234152449,0.254599,105390.0,105380.0,0.61883905]
[1738234152752,0.254599,105390.0,105380.0,0.6919275]
[1738234153356,0.254599,105390.0,105380.0,0.62483905]
[1738234153557,0.254599,105390.0,105380.0,0.6929275]
[1738234153952,0.254599,105390.0,105380.0,0.70244066]
[1738234154154,0.254599,105390.0,105380.0,0.63435221]
[1738234155060,0.254599,105390.0,105380.0,0.70244066]
[1738234155354,0.254599,105390.0,105380.0,0.63435221]
[1738234161559,0.279839,105390.0,105380.0,0.63435221]
[1738234161758,0.254599,105390.0,105380.0,0.63435221]
[1738234161952,0.279839,105390.0,105380.0,0.63435221]
[1738234163966,0.34792745,105390.0,105380.0,0.56626376]
[1738234165453,0.34792745,105390.0,105380.0,0.63435221]
[1738234165659,0.34792745,105390.0,105380.0,0.56626376]
[1738234169366,0.51792745,105390.0,105380.0,0.56626376]
[1738234169573,0.34792745,105390.0,105380.0,0.56626376]
[1738234169870,0.34792745,105390.0,105380.0,0.01565576]
[1738234170073,0.87872745,105390.0,105380.0,0.01565576]
[1738234174978,0.70872745,105390.0,105380.0,0.01565576]
[1738234175378,0.77845072,105390.0,105380.0,0.01565576]
[1738234182986,0.75321072,105390.0,105380.0,0.01565576]
[1738234183189,0.77845072,105390.0,105380.0,0.01565576]
[1738234183488,0.70872745,105390.0,105380.0,0.01565576]
[1738234187084,0.32268745,105390.0,105380.0,0.37645576]
[1738234187281,0.189799,105390.0,105380.0,0.70244966]
[1738234187486,0.22728334,105400.0,105380.0,0.57583266]
[1738234187699,0.22728334,105400.0,105390.0,0.7186759]
[1738234187890,0.17738334,105400.0,105390.0,0.7439159]
[1738234190196,0.17938334,105400.0,105390.0,0.7439159]
[1738234191797,0.002,105400.0,105390.0,0.7439159]
[1738234191998,0.002,105400.0,105390.0,0.7186759]
[1738234194701,0.002,105400.0,105390.0,0.7439159]
[1738234197101,0.1701426,105410.0,105400.0,0.3259579]
[1738234197292,0.1701426,105410.0,105400.0,0.7502579]
[1738234198301,0.1711426,105410.0,105400.0,0.7502579]
[1738234199401,0.1761426,105410.0,105400.0,0.7502579]
[1738234202109,0.1761426,105410.0,105400.0,0.75977343]
[1738234206111,0.1761426,105410.0,105400.0,0.78497343]
[1738234206512,0.1761426,105410.0,105400.0,0.75977343]
[1738234208707,0.1761426,105410.0,105400.0,0.66098498]
[1738234208911,0.1761426,105410.0,105400.0,0.72907343]
[1738234210610,0.0061426,105410.0,105400.0,0.72907343]
[1738234224221,0.0061426,105410.0,105400.0,0.69627343]
[1738234224421,0.0713426,105410.0,105400.0,0.69627343]
[1738234224725,0.2611056,105410.0,105400.0,0.69627343]
[1738234226717,0.2611056,105410.0,105400.0,0.26738498]
[1738234226924,0.6471056,105410.0,105400.0,0.07760398]
[1738234227323,0.6471056,105410.0,105400.0,0.06808845]
[1738234227512,0.6471056,105410.0,105400.0,0.25786945]
[1738234229425,0.71681317,105410.0,105400.0,0.25786945]
[1738234230028,0.35601317,105410.0,105400.0,0.3259579]
[1738234230226,0.35601317,105410.0,105400.0,0.6867579]
[1738234230430,0.33081317,105410.0,105400.0,0.3259579]
[1738234230628,0.35601317,105410.0,105400.0,0.3259579]
[1738234232022,0.2863056,105410.0,105400.0,0.3259579]
[1738234233023,0.2863056,105410.0,105400.0,0.25786945]
[1738234233735,0.2611056,105410.0,105400.0,0.6867579]
[1738234233925,0.0393426,105410.0,105400.0,0.6867579]
[1738234234416,0.0393426,105410.0,105400.0,0.3259579]
[1738234234921,0.2291056,105410.0,105400.0,0.3259579]
[1738234235121,0.2291056,105410.0,105400.0,0.6867579]
[1738234235634,0.45584507,105410.0,105400.0,0.25786945]
[1738234235820,0.45584507,105410.0,105400.0,0.61866945]
[1738234236217,0.45584507,105410.0,105400.0,0.25786945]
[1738234236529,0.62584507,105410.0,105400.0,0.61866945]
[1738234236728,0.69393352,105410.0,105400.0,0.550581]
[1738234237028,1.05473352,105410.0,105400.0,0.189781]
[1738234237619,0.86497052,105410.0,105390.0,0.43847664]
[1738234237827,0.253281,105400.0,105390.0,0.62826164]
[1738234238130,0.32136945,105400.0,105390.0,0.56017319]
[1738234238432,0.423281,105400.0,105390.0,0.62826164]
[1738234238630,0.448481,105400.0,105390.0,0.62826164]
[1738234238832,0.278481,105400.0,105390.0,0.62826164]
[1738234239633,0.280481,105400.0,105390.0,0.62826164]
[1738234240234,0.280481,105400.0,105390.0,0.63012828]
[1738234245336,0.7774579,105400.0,105390.0,0.01145483]
[1738234245538,0.7774579,105400.0,105390.0,0.19166564]
[1738234245838,0.70936945,105400.0,105390.0,0.19166564]
[1738234246531,0.87936945,105400.0,105390.0,0.19166564]
[1738234249339,0.94907702,105400.0,105390.0,0.19166564]
[1738234250531,1.01716547,105400.0,105390.0,0.19166564]
[1738234250738,1.01716547,105400.0,105390.0,0.00186664]
[1738234251135,0.189799,105390.0,105380.0,0.19971226]
[1738234251341,0.29098745,105390.0,105380.0,0.19971226]
[1738234252133,0.29098745,105390.0,105380.0,0.20071226]
[1738234252636,0.29098745,105390.0,105380.0,0.20571226]
[1738234253139,0.46098745,105390.0,105380.0,0.20571226]
[1738234256143,0.82178745,105390.0,105380.0,0.01590426]
[1738234256342,0.82178745,105390.0,105380.0,0.0061426]
[1738234256735,0.89149502,105390.0,105380.0,0.0061426]
[1738234264643,0.95958347,105390.0,105380.0,0.0061426]
[1738234264946,0.189817,105380.0,105370.0,0.19931726]
[1738234265250,0.28310545,105380.0,105370.0,0.19931726]
[1738234265553,0.64390545,105380.0,105370.0,0.19931726]
[1738234266347,0.64490545,105380.0,105370.0,0.20831726]
[1738234267551,0.64490545,105380.0,105370.0,0.21131726]
[1738234269854,0.7129939,105380.0,105370.0,0.21131726]
[1738234270150,0.64490545,105380.0,105370.0,0.21131726]
[1738234271848,0.25890545,105380.0,105370.0,0.57211726]
[1738234272041,0.28410545,105380.0,105370.0,0.57211726]
[1738234272247,0.28410545,105380.0,105370.0,0.63371726]
[1738234272845,0.28410545,105380.0,105370.0,0.70180571]
[1738234273149,0.216017,105380.0,105370.0,0.73500571]
[1738234273345,0.190817,105380.0,105370.0,0.73500571]
[1738234273544,0.190817,105380.0,105370.0,0.76020571]
[1738234273545,0.001,105380.0,105370.0,0.76020571]
[1738234280760,0.001,105380.0,105370.0,0.82829416]
[1738234281353,0.001,105380.0,105370.0,0.80309416]
[1738234281560,0.001,105380.0,105370.0,0.82829416]
[1738234283154,0.22849905,105380.0,105370.0,0.82829416]
[1738234283650,0.22849905,105380.0,105370.0,0.80309416]
[1738234283851,0.22849905,105380.0,105370.0,0.76020571]
[1738234285662,0.001,105380.0,105370.0,0.76020571]
[1738234286661,0.001,105380.0,105370.0,0.82829416]
[1738234288859,0.001,105380.0,105370.0,0.76020571]
[1738234290860,0.001,105380.0,105370.0,1.12100571]
[1738234295755,0.001,105380.0,105370.0,0.46749416]
[1738234295955,0.001,105380.0,105370.0,1.18909416]
[1738234299564,0.001,105380.0,105370.0,1.12100571]
[1738234299759,0.001,105380.0,105370.0,1.18909416]
[1738234304361,0.001,105380.0,105370.0,1.00100571]
[1738234304564,0.001,105380.0,105370.0,1.02620571]
[1738234307177,0.001,105380.0,105370.0,1.00100571]
[1738234307375,0.001,105380.0,105370.0,1.09429416]
[1738234308475,0.001,105380.0,105370.0,1.15539416]
[1738234312681,0.001,105380.0,105370.0,1.08730571]
[1738234313378,0.001,105380.0,105370.0,1.15539416]
[1738234313872,0.001,105380.0,105370.0,1.08730571]
[1738234315781,0.001,105380.0,105370.0,1.06210571]
[1738234315981,0.001,105380.0,105370.0,1.08730571]
[1738234322175,0.190817,105380.0,105370.0,1.00100571]
[1738234322382,0.190817,105380.0,105370.0,0.02149226]
[1738234322582,0.190817,105380.0,105370.0,0.08958071]
[1738234322796,0.190817,105380.0,105370.0,0.27941571]
[1738234323786,0.360817,105380.0,105370.0,0.27941571]
[1738234324181,0.001,105380.0,105370.0,0.64021571]
[1738234325180,0.001,105380.0,105370.0,0.70830416]
[1738234325870,0.001,105380.0,105370.0,0.73341571]
[1738234329986,0.171,105380.0,105370.0,0.73341571]
[1738234330378,0.39849905,105380.0,105370.0,0.73341571]
[1738234345696,0.171,105380.0,105370.0,0.73341571]
[1738234349301,0.001,105380.0,105370.0,0.73341571]
[1738234350700,0.001,105380.0,105370.0,0.57212726]
[1738234352203,0.25890545,105380.0,105370.0,0.02149226]
[1738234352416,0.3269939,105380.0,105370.0,0.02149226]
[1738234352706,0.28410545,105380.0,105370.0,0.02149226]
[1738234354105,0.28410545,105380.0,105370.0,0.21132726]
[1738234356117,0.28410545,105380.0,105370.0,0.20932726]
[1738234356417,0.28310545,105380.0,105370.0,0.20432726]
[1738234357006,0.25790545,105380.0,105370.0,0.20232726]
[1738234358315,0.25790545,105380.0,105370.0,0.20132726]
[1738234359012,0.25790545,105380.0,105370.0,0.19932726]
[1738234359218,0.26090545,105380.0,105370.0,0.19932726]
[1738234359910,0.25790545,105380.0,105370.0,0.20132726]
[1738234360313,0.189817,105380.0,105370.0,0.26941571]
[1738234361618,1.06674582,105390.0,105380.0,0.189817]
[1738234361619,0.87350582,105390.0,105380.0,0.189817]
[1738234361821,0.87350582,105390.0,105380.0,0.550617]
[1738234363217,0.87650582,105390.0,105380.0,0.550617]
[1738234364214,0.85130582,105390.0,105380.0,0.550617]
[1738234364414,0.87650582,105390.0,105380.0,0.550617]
[1738234365622,0.80679416,105390.0,105380.0,0.550617]
[1738234367725,0.57929511,105390.0,105380.0,0.550617]
[1738234370725,0.86366892,105390.0,105380.0,0.550617]
[1738234370930,0.86366892,105390.0,105380.0,0.189817]
[1738234371120,1.22446892,105390.0,105380.0,0.189817]
[1738234378027,1.77774278,105390.0,105380.0,0.189817]
[1738234379137,1.94774278,105390.0,105380.0,0.189817]
[1738234379833,1.58694278,105390.0,105380.0,0.189817]
[1738234380033,1.58694278,105390.0,105380.0,0.550617]
[1738234381033,1.44914267,105390.0,105380.0,0.550617]
[1738234381235,1.51723112,105390.0,105380.0,0.550617]
[1738234381734,1.45433112,105390.0,105380.0,0.550617]
[1738234382130,1.42343112,105390.0,105380.0,0.550617]
[1738234382332,1.35534267,105390.0,105380.0,0.550617]
[1738234382834,1.42343112,105390.0,105380.0,0.550617]
[1738234384023,1.28593112,105390.0,105380.0,0.189817]
[1738234385437,0.60311486,105390.0,105380.0,0.189817]
[1738234390440,1.03009271,105390.0,105380.0,0.189817]
[1738234390841,0.90430426,105390.0,105380.0,0.550617]
[1738234391046,0.71449426,105390.0,105380.0,0.61870545]
[1738234392446,0.90429326,105390.0,105380.0,0.61870545]
[1738234393043,0.97238171,105390.0,105380.0,0.550617]
[1738234393743,0.74466019,105390.0,105380.0,0.550617]
[1738234394642,0.67657174,105390.0,105380.0,0.550617]
[1738234394845,0.67657174,105390.0,105380.0,0.61870545]
[1738234396145,0.67657174,105390.0,105380.0,0.25790545]
[1738234396536,0.67657174,105390.0,105380.0,0.61870545]
[1738234397937,0.48677274,105390.0,105380.0,0.61870545]
[1738234399035,0.65677274,105390.0,105380.0,0.61870545]
[1738234404055,0.48677274,105390.0,105380.0,0.61870545]
[1738234404354,0.0031426,105390.0,105380.0,0.61870545]
[1738234407051,0.1731426,105390.0,105380.0,0.61870545]
[1738234408150,0.40086412,105390.0,105380.0,0.61870545]
[1738234408954,0.23086412,105390.0,105380.0,0.61870545]
[1738234411050,0.25932931,105390.0,105380.0,0.61870545]
[1738234414154,0.0031426,105390.0,105380.0,0.61870545]
[1738234414360,0.20235866,105390.0,105380.0,0.61870545]
[1738234418255,0.20235866,105390.0,105380.0,0.6867939]
[1738234421069,0.0031426,105390.0,105380.0,0.6867939]
[1738234424169,0.43003416,105390.0,105380.0,0.6867939]
[1738234425173,0.43003416,105390.0,105380.0,0.7119539]
[1738234428272,0.20235866,105390.0,105380.0,0.7119539]
[1738234431782,0.0031426,105390.0,105380.0,0.7119539]
[1738234434171,0.0031426,105390.0,105380.0,0.61870545]
[1738234434376,0.0031426,105390.0,105380.0,0.64386545]
[1738234434577,0.0357426,105390.0,105380.0,0.61870545]
[1738234437082,0.0357426,105390.0,105380.0,0.6867939]
[1738234438976,0.0357426,105390.0,105380.0,0.61870545]
[1738234439382,0.0357426,105390.0,105380.0,0.6867939]
[1738234442585,0.0357426,105390.0,105380.0,0.61870545]
[1738234443291,0.0357426,105390.0,105380.0,0.6867939]
[1738234444493,0.0357426,105390.0,105380.0,0.61870545]
[1738234445490,0.0357426,105390.0,105380.0,0.6867939]
[1738234449189,0.0031426,105390.0,105380.0,0.7119539]
[1738234450786,0.0031426,105390.0,105380.0,0.64386545]
[1738234451486,0.0031426,105390.0,105380.0,0.7119539]
[1738234453192,0.0031426,105390.0,105380.0,0.6867939]
[1738234453392,0.0031426,105390.0,105380.0,0.7119539]
[1738234456616,0.99772837,105410.0,105400.0,0.189781]
[1738234456903,0.99772837,105410.0,105400.0,0.25786945]
[1738234457403,1.16772837,105410.0,105400.0,0.25786945]
[1738234457800,1.16972837,105410.0,105400.0,0.25786945]
[1738234458199,1.17772837,105410.0,105400.0,0.25886945]
[1738234459405,0.81796537,105410.0,105400.0,0.6877579]
[1738234461507,0.64726052,105410.0,105400.0,0.6877579]
[1738234465100,0.64726052,105410.0,105400.0,0.69721383]
[1738234465799,0.36288671,105410.0,105400.0,0.69721383]
[1738234468713,0.36288671,105410.0,105400.0,0.62912538]
[1738234468908,0.1067,105410.0,105400.0,0.62912538]
[1738234474017,0.1067,105410.0,105400.0,0.69721383]
[1738234475813,0.1067,105410.0,105400.0,0.62912538]
[1738234484035,0.0752,105410.0,105400.0,0.62912538]
[1738234496534,0.33138671,105410.0,105400.0,0.62912538]
[1738234501746,0.29828671,105410.0,105400.0,0.62912538]
[1738234501941,0.26618671,105410.0,105400.0,0.69721383]
[1738234506942,0.01,105410.0,105400.0,0.62912538]
[1738234507143,0.0401,105410.0,105400.0,0.62912538]
[1738234507445,0.10818845,105410.0,105400.0,0.56103693]
[1738234507642,0.36225145,105410.0,105400.0,0.01045593]
[1738234508349,0.36225145,105410.0,105400.0,0.20023693]
[1738234509243,0.36225145,105410.0,105400.0,0.26832538]
[1738234510649,0.294163,105410.0,105400.0,0.26832538]
[1738234515752,0.464163,105410.0,105400.0,0.26832538]
[1738234516853,0.53225145,105410.0,105400.0,0.20023693]
[1738234517549,0.36225145,105410.0,105400.0,0.20023693]
[1738234518058,0.53225145,105410.0,105400.0,0.20023693]
[1738234522561,0.6019572,105410.0,105400.0,0.20023693]
[1738234522755,0.53386875,105410.0,105400.0,0.26832538]
[1738234525066,0.464163,105410.0,105400.0,0.26832538]
[1738234527862,0.464163,105410.0,105400.0,0.20023693]
[1738234528767,0.53225145,105410.0,105400.0,0.20023693]
[1738234531266,0.464163,105410.0,105400.0,0.20023693]
[1738234534471,0.489323,105410.0,105400.0,0.20023693]
[1738234535565,0.425023,105410.0,105400.0,0.20023693]
[1738234535764,0.425023,105410.0,105400.0,0.26832538]
[1738234538866,0.399863,105410.0,105400.0,0.26832538]
[1738234539674,0.399863,105410.0,105400.0,0.20023693]
[1738234543176,0.229863,105410.0,105400.0,0.62912538]
[1738234543479,0.45612078,105410.0,105400.0,0.69721383]
[1738234543874,0.26635778,105410.0,105400.0,0.69721383]
[1738234544967,0.26635778,105410.0,105400.0,0.72237383]
[1738234545168,0.25118478,105410.0,105400.0,0.79046228]
[1738234545980,0.25118478,105410.0,105400.0,0.72237383]
[1738234546173,0.24306398,105410.0,105400.0,0.72237383]
[1738234546375,0.70923884,105420.0,105410.0,0.189763]
[1738234546672,0.70923884,105420.0,105410.0,0.71325145]
[1738234547478,0.71223884,105420.0,105410.0,0.71325145]
[1738234548174,0.71923884,105420.0,105410.0,0.71425145]
[1738234549175,0.71823884,105420.0,105410.0,0.71425145]
[1738234549374,0.71123884,105420.0,105410.0,0.71325145]
[1738234550986,0.48348585,105420.0,105410.0,0.71325145]
[1738234553984,0.39989559,105420.0,105410.0,0.71325145]
[1738234556877,0.22989559,105420.0,105410.0,0.71325145]
[1738234557083,0.0021426,105420.0,105410.0,0.71325145]
[1738234562488,0.0021426,105420.0,105410.0,0.7813399]
[1738234562684,0.0021426,105420.0,105410.0,0.84942835]
[1738234562887,0.28437381,105430.0,105420.0,0.189745]
[1738234563191,0.28437381,105430.0,105420.0,0.77993035]
[1738234563380,0.28437381,105430.0,105420.0,0.7118419]
[1738234564291,0.28737381,105430.0,105420.0,0.7118419]
[1738234565093,0.29437381,105430.0,105420.0,0.7128419]
[1738234566894,0.01,105430.0,105420.0,0.7128419]
[1738234569987,0.01,105430.0,105420.0,0.6877219]
[1738234570187,0.009,105430.0,105420.0,0.7128419]
[1738234570392,0.0393,105430.0,105420.0,0.7128419]
[1738234570783,0.0323,105430.0,105420.0,0.7118419]
[1738234570992,0.0363,105430.0,105420.0,0.7118419]
[1738234571183,0.0363,105430.0,105420.0,0.69621599]
[1738234571496,0.0667,105430.0,105420.0,0.69621599]
[1738234572489,0.256427,105430.0,105420.0,0.62812754]
[1738234572892,0.32451545,105430.0,105420.0,0.62812754]
[1738234573093,0.32451545,105430.0,105420.0,0.07758254]
[1738234573285,0.256427,105430.0,105420.0,0.07758254]
[1738234574391,0.256427,105430.0,105420.0,0.26732754]
[1738234576995,0.32451545,105430.0,105420.0,0.26732754]
[1738234577993,0.256427,105430.0,105420.0,0.26732754]
[1738234579792,0.32451545,105430.0,105420.0,0.26732754]
[1738234579995,0.68531545,105430.0,105420.0,0.19923909]
[1738234580697,0.68531545,105430.0,105420.0,0.189745]
[1738234582600,0.68531545,105430.0,105420.0,0.189745]
[1738234583998,0.68531545,105430.0,105420.0,0.25783345]
[1738234584304,0.68531545,105430.0,105420.0,0.189745]
[1738234587109,0.98276415,105430.0,105420.0,0.189745]
[1738234587609,0.98276415,105430.0,105420.0,0.25783345]
[1738234588709,0.98276415,105430.0,105420.0,0.189745]
[1738234589613,0.98276415,105430.0,105420.0,0.18961425]
[1738234590710,0.9146757,105430.0,105420.0,0.2577027]
[1738234590905,0.9397957,105430.0,105420.0,0.32579115]
[1738234591208,0.9397957,105430.0,105420.0,0.2577027]
[1738234593704,0.642347,105430.0,105420.0,0.2577027]
[1738234595116,0.281547,105430.0,105420.0,0.2577027]
[1738234595716,0.642347,105430.0,105420.0,0.2577027]
[1738234596616,0.281547,105430.0,105420.0,0.2577027]
[1738234597416,0.642347,105430.0,105420.0,0.2577027]
[1738234601515,0.71204138,105430.0,105420.0,0.2577027]
[1738234602710,0.78012983,105430.0,105420.0,0.2577027]
[1738234603611,0.78012983,105430.0,105420.0,0.18961425]
[1738234604815,1.26326002,105430.0,105420.0,0.18961425]
[1738234605618,1.26326002,105430.0,105420.0,0.2577027]
[1738234605917,1.26326002,105430.0,105420.0,0.18961425]
[1738234607723,1.19356564,105430.0,105420.0,0.18961425]
[1738234608725,1.12547719,105430.0,105420.0,0.2577027]
[1738234609220,0.76467719,105430.0,105420.0,0.2577027]
[1738234610416,0.70915719,105430.0,105420.0,0.2577027]
[1738234610715,0.70405719,105430.0,105420.0,0.2577027]
[1738234611020,0.70401719,105430.0,105420.0,0.2577027]
[1738234611416,1.06481719,105430.0,105420.0,0.2577027]
[1738234611625,0.70401719,105430.0,105420.0,0.2577027]
[1738234612326,1.06481719,105430.0,105420.0,0.2577027]
[1738234612516,0.70401719,105430.0,105420.0,0.2577027]
[1738234614328,0.47639792,105430.0,105420.0,0.2577027]
[1738234616725,0.189745,105420.0,105410.0,0.69382418]
[1738234617925,0.190745,105420.0,105410.0,0.69382418]
[1738234618124,0.191745,105420.0,105410.0,0.69382418]
[1738234626027,0.62063345,105420.0,105410.0,0.00977873]
[1738234626332,0.189763,105410.0,105400.0,0.61865845]
[1738234626527,0.359763,105410.0,105400.0,0.61865845]
[1738234626939,0.42785145,105410.0,105400.0,0.61865845]
[1738234627140,0.359763,105410.0,105400.0,0.61865845]
[1738234627540,0.359763,105410.0,105400.0,0.62837313]
[1738234627741,0.359763,105410.0,105400.0,0.62937313]
[1738234628735,0.384963,105410.0,105400.0,0.62937313]
[1738234635845,0.448863,105410.0,105400.0,0.62937313]
[1738234642556,0.448823,105410.0,105400.0,0.62937313]
[1738234642855,0.278823,105410.0,105400.0,0.62937313]
[1738234652371,0.247923,105410.0,105400.0,0.62937313]
[1738234653167,0.222763,105410.0,105400.0,0.62937313]
[1738234653369,0.214883,105410.0,105400.0,0.69746158]
[1738234653567,0.189763,105410.0,105400.0,0.69746158]
[1738234656972,0.189763,105410.0,105400.0,0.62937313]
[1738234657264,0.189763,105410.0,105400.0,0.26857313]
[1738234657771,0.550563,105410.0,105400.0,0.26857313]
[1738234657973,0.189763,105410.0,105400.0,0.26857313]
[1738234658269,0.220263,105410.0,105400.0,0.26857313]
[1738234658565,0.28835145,105410.0,105400.0,0.20048468]
[1738234658762,0.32145145,105410.0,105400.0,0.20048468]
[1738234659565,0.39115521,105410.0,105400.0,0.20048468]
[1738234661770,0.39115521,105410.0,105400.0,0.26857313]
[1738234662970,0.32145145,105410.0,105400.0,0.26857313]
[1738234664162,0.253363,105410.0,105400.0,0.26857313]
[1738234665868,0.32145145,105410.0,105400.0,0.20048468]
[1738234666170,0.32145145,105410.0,105400.0,0.26857313]
[1738234667967,0.253363,105410.0,105400.0,0.26857313]
[1738234668674,0.32145145,105410.0,105400.0,0.26857313]
[1738234669278,0.32145145,105410.0,105400.0,0.20048468]
[1738234669872,0.253363,105410.0,105400.0,0.26857313]
[1738234670074,0.253363,105410.0,105400.0,0.20048468]
[1738234671073,0.32145145,105410.0,105400.0,0.20048468]
[1738234674271,0.34673145,105410.0,105400.0,0.20048468]
[1738234686075,0.245543,105410.0,105400.0,0.20048468]
[1738234686275,0.220263,105410.0,105400.0,0.20048468]
[1738234686484,0.245543,105410.0,105400.0,0.20048468]
[1738234686786,0.31363145,105410.0,105400.0,0.20048468]
[1738234687083,0.245543,105410.0,105400.0,0.20048468]
[1738234694289,0.220263,105410.0,105400.0,0.20048468]
[1738234694479,0.245423,105410.0,105400.0,0.20048468]
[1738234695083,0.189763,105410.0,105400.0,0.62937313]
[1738234695290,0.214923,105410.0,105400.0,0.62937313]
[1738234695984,0.214923,105410.0,105400.0,0.26857313]
[1738234696691,0.214883,105410.0,105400.0,0.26857313]
[1738234697583,0.214883,105410.0,105400.0,0.62937313]
[1738234698595,0.189763,105410.0,105400.0,0.62937313]
[1738234698795,0.214883,105410.0,105400.0,0.62937313]
[1738234703510,0.28297145,105410.0,105400.0,0.56128468]
[1738234703700,0.64377145,105410.0,105400.0,0.20048468]
[1738234703900,0.67707145,105410.0,105400.0,0.20048468]
[1738234704102,0.31627145,105410.0,105400.0,0.20048468]
[1738234704498,0.67707145,105410.0,105400.0,0.20048468]
[1738234705010,0.67707145,105410.0,105390.0,0.51587753]
[1738234705302,0.72451345,105410.0,105400.0,0.189773]
[1738234705606,0.75571345,105410.0,105400.0,0.189773]
[1738234705910,0.75571345,105410.0,105400.0,0.10074997]
[1738234707211,0.56595045,105410.0,105390.0,0.16353105]
[1738234707510,0.189781,105400.0,105390.0,0.36493235]
[1738234708415,0.189781,105400.0,105390.0,0.36793235]
[1738234709308,0.189781,105400.0,105390.0,0.36893235]
[1738234709712,0.189781,105400.0,105390.0,0.27990932]
[1738234709915,0.359781,105400.0,105390.0,0.27890932]
[1738234710115,0.359781,105400.0,105390.0,0.28090932]
[1738234710509,0.359781,105400.0,105390.0,0.28290932]
[1738234711005,0.359781,105400.0,105390.0,0.18482145]
[1738234717714,0.42786945,105400.0,105390.0,0.18482145]
[1738234718309,0.359781,105400.0,105390.0,0.18482145]
[1738234718515,0.42786945,105400.0,105390.0,0.18482145]
[1738234722414,0.46056945,105400.0,105390.0,0.18482145]
[1738234727721,0.392481,105400.0,105390.0,0.18482145]
[1738234729722,0.46056945,105400.0,105390.0,0.116733]
[1738234747939,0.29056945,105400.0,105390.0,0.116733]
[1738234752044,0.29056945,105400.0,105390.0,0.0186103]
[1738234752243,0.65136945,105400.0,105390.0,0.0186103]
[1738234753146,0.65136945,105400.0,105390.0,0.2084093]
[1738234755539,0.65136945,105400.0,105390.0,0.27649775]
[1738234755739,0.583281,105400.0,105390.0,0.27649775]
[1738234756647,0.65136945,105400.0,105390.0,0.2084093]
[1738234759442,0.82136945,105400.0,105390.0,0.2084093]
[1738234759644,0.84648945,105400.0,105390.0,0.2084093]
[1738234764343,0.778401,105400.0,105390.0,0.2084093]
[1738234764542,0.608401,105400.0,105390.0,0.2084093]
[1738234765149,0.608401,105400.0,105390.0,0.27649775]
[1738234765747,0.189781,105400.0,105390.0,0.27649775]
[1738234766047,0.279391,105410.0,105400.0,0.189781]
[1738234766243,0.254271,105410.0,105400.0,0.61866945]
[1738234768756,0.254271,105410.0,105400.0,0.61966945]
[1738234771754,0.615071,105410.0,105400.0,0.25886945]
[1738234772056,0.68315945,105410.0,105400.0,0.25886945]
[1738234778053,0.615071,105410.0,105400.0,0.25886945]
[1738234778252,0.254271,105410.0,105400.0,0.25886945]
[1738234778955,0.32235945,105410.0,105400.0,0.25886945]
[1738234780754,0.32235945,105410.0,105400.0,0.61966945]
[1738234781861,0.254271,105410.0,105400.0,0.61966945]
[1738234790449,0.2345,105410.0,105400.0,0.6877579]
[1738234790655,0.0333,105410.0,105400.0,0.6877579]
[1738234790856,0.2462216,105420.0,105410.0,0.189763]
[1738234791056,0.2462216,105420.0,105410.0,0.61865145]
[1738234791257,0.3911016,105420.0,105410.0,0.61865145]
[1738234792159,0.3921016,105420.0,105410.0,0.61865145]